[Event "*** Titled Tuesday Blitz"]
[Site "Chess.com"]
[Date "2020.02.04"]
[Round "6"]
[White "tteshan"]
[Black "HashtagChess"]
[Result "1-0"]
[WhiteElo "2266"]
[BlackElo "1620"]
[TimeControl "180+2"]
[EndTime "14:18:56 PST"]
[Termination "tteshan won by resignation"]

1. e4 {[%clk 0:03:01.9]} 1... c5 {[%clk 0:02:58.3]} 2. Nf3 {[%clk 0:03:03]} 2...
e6 {[%clk 0:02:57.4]} 3. d4 {[%clk 0:03:02.5]} 3... cxd4 {[%clk 0:02:59.3]} 4.
Nxd4 {[%clk 0:03:03.7]} 4... a6 {[%clk 0:03:01]} 5. c4 {[%clk 0:03:04.6]} 5...
Qc7 {[%clk 0:02:56]} 6. Nc3 {[%clk 0:03:04.7]} 6... Nf6 {[%clk 0:02:53.2]} 7. f3
{[%clk 0:03:05]} 7... g6 {[%clk 0:02:52.5]} 8. Be3 {[%clk 0:03:05.8]} 8... Bg7
{[%clk 0:02:52.7]} 9. Be2 {[%clk 0:03:06.4]} 9... O-O {[%clk 0:02:52.9]} 10. O-O
{[%clk 0:03:06.3]} 10... Nc6 {[%clk 0:02:52.5]} 11. Qd2 {[%clk 0:03:01.6]} 11...
b6 {[%clk 0:02:45.7]} 12. Rac1 {[%clk 0:02:55.3]} 12... Bb7 {[%clk 0:02:46.6]}
13. Rfd1 {[%clk 0:02:56]} 13... d6 {[%clk 0:02:46.7]} 14. b3 {[%clk 0:02:56.4]}
14... Rfd8 {[%clk 0:02:32]} 15. Nxc6 {[%clk 0:02:46.9]} 15... Bxc6 {[%clk
0:02:28]} 16. Qd4 {[%clk 0:02:47.9]} 16... Rab8 {[%clk 0:02:15.9]} 17. Qd2
{[%clk 0:02:39.1]} 17... Qb7 {[%clk 0:01:44.2]} 18. Bh6 {[%clk 0:02:29.1]} 18...
d5 {[%clk 0:01:22.4]} 19. Bxg7 {[%clk 0:02:19.5]} 19... Kxg7 {[%clk 0:01:20.8]}
20. exd5 {[%clk 0:02:19]} 20... exd5 {[%clk 0:01:19.8]} 21. cxd5 {[%clk
0:02:19.7]} 21... Bxd5 {[%clk 0:01:07.2]} 22. Qf4 {[%clk 0:02:06.3]} 22... Be6
{[%clk 0:01:01.8]} 23. Ne4 {[%clk 0:01:59.9]} 23... Nxe4 {[%clk 0:00:55.1]} 24.
fxe4 {[%clk 0:01:56.2]} 24... b5 {[%clk 0:00:40.1]} 25. e5 {[%clk 0:01:51.1]}
25... Qe7 {[%clk 0:00:40.5]} 26. Bf3 {[%clk 0:01:29.3]} 26... Bf5 {[%clk
0:00:19.9]} 27. g4 {[%clk 0:01:24.1]} 27... Be6 {[%clk 0:00:20.2]} 28. g5 {[%clk
0:01:23.8]} 28... Rbc8 {[%clk 0:00:17.4]} 29. Qf6+ {[%clk 0:01:17.9]} 29... Qxf6
{[%clk 0:00:18]} 30. exf6+ {[%clk 0:01:19.8]} 30... Kf8 {[%clk 0:00:18.6]} 31.
Rxd8+ {[%clk 0:01:12.2]} 31... Rxd8 {[%clk 0:00:20.5]} 32. Rd1 {[%clk
0:01:13.3]} 32... Rxd1+ {[%clk 0:00:20.4]} 33. Bxd1 {[%clk 0:01:15.2]} 33... Bd5
{[%clk 0:00:20.7]} 34. Kf2 {[%clk 0:01:15.7]} 34... Ke8 {[%clk 0:00:21.7]} 35.
Ke3 {[%clk 0:01:17]} 35... Kd7 {[%clk 0:00:23.3]} 36. Kd4 {[%clk 0:01:16.8]}
36... Kd6 {[%clk 0:00:24.9]} 37. Bg4 {[%clk 0:01:14.7]} 37... a5 {[%clk
0:00:25.4]} 38. Bc8 {[%clk 0:01:08.6]} 38... a4 {[%clk 0:00:25.7]} 39. bxa4
{[%clk 0:01:08.5]} 39... bxa4 {[%clk 0:00:27.6]} 40. a3 {[%clk 0:01:09.7]} 40...
Bb3 {[%clk 0:00:29.1]} 41. Ba6 {[%clk 0:01:04.6]} 41... Be6 {[%clk 0:00:28.7]}
42. Bc4 {[%clk 0:01:03.7]} 42... Bd7 {[%clk 0:00:27.9]} 43. Bxf7 {[%clk
0:01:03.8]} 43... Be6 {[%clk 0:00:26.4]} 44. Bxe6 {[%clk 0:01:02.9]} 44... Kxe6
{[%clk 0:00:28.3]} 45. Ke4 {[%clk 0:01:03.2]} 45... h6 {[%clk 0:00:29.2]} 46. h4
{[%clk 0:01:00.8]} 1-0

[Event "*** Titled Tuesday Blitz"]
[Site "Chess.com"]
[Date "2020.02.04"]
[Round "6"]
[White "PotapovaM"]
[Black "ChadBiryani"]
[Result "0-1"]
[WhiteElo "2489"]
[BlackElo "2324"]
[TimeControl "180+2"]
[EndTime "14:18:57 PST"]
[Termination "ChadBiryani won on time"]

1. Nf3 {[%clk 0:03:01.9]} 1... f5 {[%clk 0:02:57.1]} 2. c4 {[%clk 0:02:59.4]}
2... Nf6 {[%clk 0:02:51.1]} 3. b3 {[%clk 0:03:00.1]} 3... d6 {[%clk 0:02:50.4]}
4. Bb2 {[%clk 0:03:01.2]} 4... e5 {[%clk 0:02:51.5]} 5. d3 {[%clk 0:03:00.5]}
5... Be7 {[%clk 0:02:50.7]} 6. Nc3 {[%clk 0:03:01.4]} 6... O-O {[%clk
0:02:52.2]} 7. g3 {[%clk 0:03:00.4]} 7... Nc6 {[%clk 0:02:52.4]} 8. Bg2 {[%clk
0:03:01.2]} 8... Qe8 {[%clk 0:02:53.9]} 9. O-O {[%clk 0:03:01.2]} 9... Qh5
{[%clk 0:02:54.4]} 10. e4 {[%clk 0:03:00.6]} 10... f4 {[%clk 0:02:54.6]} 11. d4
{[%clk 0:02:58]} 11... Bg4 {[%clk 0:02:51.9]} 12. Nd5 {[%clk 0:02:53.5]} 12...
Nxd5 {[%clk 0:02:32.7]} 13. cxd5 {[%clk 0:02:45.6]} 13... Nxd4 {[%clk
0:02:22.1]} 14. Bxd4 {[%clk 0:02:46.2]} 14... exd4 {[%clk 0:02:24]} 15. Qd3
{[%clk 0:02:41.3]} 15... Bf6 {[%clk 0:02:25]} 16. gxf4 {[%clk 0:02:38.7]} 16...
Be7 {[%clk 0:02:18]} 17. f5 {[%clk 0:02:34]} 17... g6 {[%clk 0:02:17.1]} 18.
Nxd4 {[%clk 0:02:30.4]} 18... gxf5 {[%clk 0:02:08]} 19. exf5 {[%clk 0:02:27]}
19... Bf6 {[%clk 0:02:09]} 20. Rac1 {[%clk 0:02:20.2]} 20... Be5 {[%clk
0:01:49.9]} 21. f4 {[%clk 0:02:09.5]} 21... Bxd4+ {[%clk 0:01:34.5]} 22. Qxd4
{[%clk 0:02:11.4]} 22... Rf7 {[%clk 0:01:34.7]} 23. f6 {[%clk 0:01:38.9]} 23...
Qh4 {[%clk 0:01:11]} 24. Rc3 {[%clk 0:01:35.7]} 24... Re8 {[%clk 0:01:05.1]} 25.
Rg3 {[%clk 0:01:34]} 25... Kf8 {[%clk 0:01:01.9]} 26. f5 {[%clk 0:01:30.5]}
26... h5 {[%clk 0:01:01.5]} 27. Qf4 {[%clk 0:01:26.8]} 27... Qxf6 {[%clk
0:00:58.9]} 28. h3 {[%clk 0:01:23.4]} 28... Bxf5 {[%clk 0:00:52.6]} 29. Rg5
{[%clk 0:01:13]} 29... Re5 {[%clk 0:00:53.3]} 30. Rxh5 {[%clk 0:01:11.5]} 30...
Ke7 {[%clk 0:00:46.4]} 31. Rh6 {[%clk 0:01:06.3]} 31... Qg7 {[%clk 0:00:41.2]}
32. Rc1 {[%clk 0:00:50.8]} 32... Be4 {[%clk 0:00:23.3]} 33. Rxc7+ {[%clk
0:00:41]} 33... Kd8 {[%clk 0:00:24.2]} 34. Qh4+ {[%clk 0:00:06.5]} 34... Kxc7
{[%clk 0:00:19.1]} 0-1

[Event "*** Titled Tuesday Blitz"]
[Site "Chess.com"]
[Date "2020.02.04"]
[Round "6"]
[White "Darhild"]
[Black "CM_Perligero"]
[Result "1-0"]
[WhiteElo "2708"]
[BlackElo "2095"]
[TimeControl "180+2"]
[EndTime "14:18:57 PST"]
[Termination "Darhild won on time"]

1. e4 {[%clk 0:03:01.9]} 1... d5 {[%clk 0:02:57.6]} 2. exd5 {[%clk 0:03:02.6]}
2... Qxd5 {[%clk 0:02:58.6]} 3. Nc3 {[%clk 0:03:03.4]} 3... Qa5 {[%clk 0:02:59]}
4. g3 {[%clk 0:03:04.7]} 4... c6 {[%clk 0:03:00.1]} 5. Bg2 {[%clk 0:03:05.4]}
5... Nf6 {[%clk 0:03:01.1]} 6. Nge2 {[%clk 0:03:05.4]} 6... Bg4 {[%clk
0:02:55.8]} 7. b4 {[%clk 0:03:06.2]} 7... Qh5 {[%clk 0:02:51.1]} 8. h3 {[%clk
0:03:02.3]} 8... Bc8 {[%clk 0:02:41.7]} 9. g4 {[%clk 0:02:49.9]} 9... Qe5 {[%clk
0:02:36.1]} 10. d4 {[%clk 0:02:49.7]} 10... Qe6 {[%clk 0:02:31.3]} 11. O-O
{[%clk 0:02:39.5]} 11... h5 {[%clk 0:02:27.8]} 12. g5 {[%clk 0:02:31.5]} 12...
Nd5 {[%clk 0:02:06]} 13. Nxd5 {[%clk 0:02:30.7]} 13... cxd5 {[%clk 0:02:00.4]}
14. Nf4 {[%clk 0:02:32.1]} 14... Qd7 {[%clk 0:01:58.4]} 15. Nxd5 {[%clk
0:02:19.2]} 15... e6 {[%clk 0:01:59.5]} 16. Nf4 {[%clk 0:02:20.7]} 16... Bxb4
{[%clk 0:01:58.5]} 17. g6 {[%clk 0:02:20.1]} 17... Bc3 {[%clk 0:01:50.8]} 18.
gxf7+ {[%clk 0:02:20.8]} 18... Kxf7 {[%clk 0:01:45.6]} 19. Rb1 {[%clk 0:02:12]}
19... Bxd4 {[%clk 0:01:31.5]} 20. Qf3 {[%clk 0:02:04.4]} 20... Bf6 {[%clk
0:01:25.1]} 21. Rd1 {[%clk 0:02:01.6]} 21... Qc6 {[%clk 0:01:16.4]} 22. Qd3
{[%clk 0:01:59.5]} 22... Qa6 {[%clk 0:00:35.3]} 23. Qg6+ {[%clk 0:01:55]} 23...
Kf8 {[%clk 0:00:34.2]} 24. Nxh5 {[%clk 0:01:23.5]} 24... Rxh5 {[%clk 0:00:19.5]}
25. Qxh5 {[%clk 0:01:22.3]} 25... Nc6 {[%clk 0:00:20.3]} 26. Bg5 {[%clk
0:01:10.9]} 26... Qa5 {[%clk 0:00:13.8]} 27. Qh8+ {[%clk 0:01:11.4]} 27... Kf7
{[%clk 0:00:14.5]} 28. Bxf6 {[%clk 0:01:12.1]} 28... Kxf6 {[%clk 0:00:14.5]} 29.
Rb3 {[%clk 0:01:09.5]} 29... Ne5 {[%clk 0:00:14.3]} 30. Rg3 {[%clk 0:01:03.7]}
30... Ng6 {[%clk 0:00:12.3]} 31. Qe8 {[%clk 0:00:57.8]} 31... Ne5 {[%clk
0:00:03.7]} 32. Qf8+ {[%clk 0:00:56.2]} 32... Nf7 {[%clk 0:00:04.5]} 33. Rxg7
{[%clk 0:00:49.9]} 33... Qh5 {[%clk 0:00:04.4]} 34. Rd3 {[%clk 0:00:46.3]} 34...
Bd7 {[%clk 0:00:03.6]} 35. Rxf7+ {[%clk 0:00:43.6]} 35... Qxf7 {[%clk 0:00:03]}
36. Rf3+ {[%clk 0:00:44.5]} 1-0

[Event "*** Titled Tuesday Blitz"]
[Site "Chess.com"]
[Date "2020.02.04"]
[Round "6"]
[White "SanchezKelvin"]
[Black "ChainsOfFantasia"]
[Result "1-0"]
[WhiteElo "2374"]
[BlackElo "2492"]
[TimeControl "180+2"]
[EndTime "14:18:58 PST"]
[Termination "SanchezKelvin won by resignation"]

1. d4 {[%clk 0:02:47]} 1... Nf6 {[%clk 0:03:00.3]} 2. c4 {[%clk 0:02:43.7]} 2...
e6 {[%clk 0:03:01.4]} 3. Nf3 {[%clk 0:02:36.5]} 3... d5 {[%clk 0:03:02.7]} 4.
Nc3 {[%clk 0:02:29.8]} 4... dxc4 {[%clk 0:03:02.8]} 5. e3 {[%clk 0:02:29.8]}
5... a6 {[%clk 0:03:03.2]} 6. Bxc4 {[%clk 0:02:29.8]} 6... b5 {[%clk 0:03:04.5]}
7. Be2 {[%clk 0:02:30.7]} 7... Bb7 {[%clk 0:03:06.1]} 8. O-O {[%clk 0:02:31]}
8... c5 {[%clk 0:03:05.5]} 9. dxc5 {[%clk 0:02:30.7]} 9... Qxd1 {[%clk
0:03:04.5]} 10. Rxd1 {[%clk 0:02:31.5]} 10... Bxc5 {[%clk 0:03:06.1]} 11. b3
{[%clk 0:02:28.6]} 11... Nbd7 {[%clk 0:03:04.7]} 12. Bb2 {[%clk 0:02:29.1]}
12... O-O {[%clk 0:03:04.4]} 13. a4 {[%clk 0:02:28.7]} 13... b4 {[%clk
0:03:04.4]} 14. Nb1 {[%clk 0:02:27.8]} 14... Bd5 {[%clk 0:03:04.8]} 15. Nbd2
{[%clk 0:02:27.4]} 15... a5 {[%clk 0:03:03]} 16. Nc4 {[%clk 0:01:30.5]} 16...
Nb6 {[%clk 0:02:59.7]} 17. Nfe5 {[%clk 0:01:25.1]} 17... Rfd8 {[%clk 0:02:46.9]}
18. Nxb6 {[%clk 0:01:19.2]} 18... Bxb6 {[%clk 0:02:48.8]} 19. Nc4 {[%clk
0:01:20.3]} 19... Bc7 {[%clk 0:02:33.9]} 20. f3 {[%clk 0:01:13.5]} 20... Bxc4
{[%clk 0:02:28.5]} 21. Bxc4 {[%clk 0:01:13.8]} 21... Bb6 {[%clk 0:02:30]} 22.
Kf2 {[%clk 0:01:13.2]} 22... Kf8 {[%clk 0:02:18.7]} 23. Ke2 {[%clk 0:01:13.9]}
23... Ke7 {[%clk 0:02:19.3]} 24. g4 {[%clk 0:01:12.6]} 24... g6 {[%clk
0:02:18.5]} 25. h3 {[%clk 0:01:03.3]} 25... Rac8 {[%clk 0:02:14.1]} 26. e4
{[%clk 0:00:38.7]} 26... Nd7 {[%clk 0:02:01.7]} 27. f4 {[%clk 0:00:31.9]} 27...
Nc5 {[%clk 0:01:45]} 28. Kf3 {[%clk 0:00:30.5]} 28... f6 {[%clk 0:01:28.1]} 29.
h4 {[%clk 0:00:23.8]} 29... Nd7 {[%clk 0:01:27.2]} 30. g5 {[%clk 0:00:18.7]}
30... Rf8 {[%clk 0:01:03.5]} 31. Rd2 {[%clk 0:00:13.2]} 31... fxg5 {[%clk
0:01:02.3]} 32. hxg5 {[%clk 0:00:15.1]} 32... e5 {[%clk 0:01:00.3]} 33. Rad1
{[%clk 0:00:15.7]} 33... Rxf4+ {[%clk 0:00:59.9]} 34. Kg3 {[%clk 0:00:15.4]}
34... Rc7 {[%clk 0:00:53.7]} 35. Bb5 {[%clk 0:00:15.1]} 35... Rxe4 {[%clk
0:00:31.9]} 36. Rxd7+ {[%clk 0:00:15.1]} 36... Rxd7 {[%clk 0:00:33.3]} 37. Rxd7+
{[%clk 0:00:17]} 37... Ke6 {[%clk 0:00:34.7]} 38. Rxh7 {[%clk 0:00:17.8]} 38...
Re3+ {[%clk 0:00:34.6]} 39. Kg4 {[%clk 0:00:19.2]} 39... Rxb3 {[%clk 0:00:34.9]}
40. Bc4+ {[%clk 0:00:20.1]} 40... Kd6 {[%clk 0:00:34.4]} 41. Bxb3 {[%clk
0:00:22]} 1-0

[Event "*** Titled Tuesday Blitz"]
[Site "Chess.com"]
[Date "2020.02.04"]
[Round "6"]
[White "WPWPWP-2015"]
[Black "GMHess"]
[Result "0-1"]
[WhiteElo "2520"]
[BlackElo "2744"]
[TimeControl "180+2"]
[EndTime "14:19:09 PST"]
[Termination "GMHess won by resignation"]

1. e4 {[%clk 0:03:01.9]} 1... g6 {[%clk 0:02:59.1]} 2. d4 {[%clk 0:03:02.1]}
2... Bg7 {[%clk 0:03:01]} 3. Nc3 {[%clk 0:03:02.9]} 3... c6 {[%clk 0:03:01.9]}
4. a4 {[%clk 0:03:01.9]} 4... d6 {[%clk 0:03:02.2]} 5. h3 {[%clk 0:03:02.2]}
5... Qc7 {[%clk 0:03:02.8]} 6. Nf3 {[%clk 0:03:02.2]} 6... e5 {[%clk 0:03:03.7]}
7. Be3 {[%clk 0:03:02.6]} 7... Nf6 {[%clk 0:03:03.9]} 8. Qd2 {[%clk 0:03:02.2]}
8... O-O {[%clk 0:03:04.7]} 9. Bc4 {[%clk 0:03:00.7]} 9... Nbd7 {[%clk
0:02:49.3]} 10. dxe5 {[%clk 0:02:59.7]} 10... dxe5 {[%clk 0:02:26.1]} 11. a5
{[%clk 0:02:53.3]} 11... Rb8 {[%clk 0:01:45.2]} 12. O-O {[%clk 0:02:32]} 12...
b5 {[%clk 0:01:44.2]} 13. axb6 {[%clk 0:02:26.6]} 13... axb6 {[%clk 0:01:32.1]}
14. Bb3 {[%clk 0:02:16.4]} 14... Nc5 {[%clk 0:01:06.7]} 15. Bxc5 {[%clk
0:02:13.3]} 15... bxc5 {[%clk 0:01:08.6]} 16. Qe2 {[%clk 0:02:09.5]} 16... Nh5
{[%clk 0:01:02.6]} 17. Qe3 {[%clk 0:01:41.2]} 17... Qe7 {[%clk 0:00:27.7]} 18.
Ra5 {[%clk 0:01:29.5]} 18... c4 {[%clk 0:00:28.3]} 19. Bxc4 {[%clk 0:01:19.1]}
19... Rxb2 {[%clk 0:00:30.2]} 20. Bb3 {[%clk 0:01:19.4]} 20... Nf4 {[%clk
0:00:19.1]} 21. Na4 {[%clk 0:01:14.9]} 21... Qb4 {[%clk 0:00:08.9]} 22. Qc5
{[%clk 0:00:52.6]} 22... Rxb3 {[%clk 0:00:06]} 23. cxb3 {[%clk 0:00:52.5]} 23...
Qxe4 {[%clk 0:00:07.5]} 24. Nc3 {[%clk 0:00:48.7]} 24... Qd3 {[%clk 0:00:04]}
25. Re1 {[%clk 0:00:28.2]} 25... Nxh3+ {[%clk 0:00:04.1]} 26. gxh3 {[%clk
0:00:28.5]} 26... Qxf3 {[%clk 0:00:05.4]} 27. Qe3 {[%clk 0:00:28.4]} 27... Qxh3
{[%clk 0:00:03.9]} 28. Ne4 {[%clk 0:00:20.9]} 28... Qg4+ {[%clk 0:00:02.9]} 29.
Qg3 {[%clk 0:00:21.6]} 29... Qxg3+ {[%clk 0:00:04]} 30. fxg3 {[%clk 0:00:22.7]}
30... f5 {[%clk 0:00:05.2]} 31. Nd6 {[%clk 0:00:21.3]} 31... Be6 {[%clk
0:00:06.4]} 32. Nc4 {[%clk 0:00:18.7]} 32... e4 {[%clk 0:00:07.1]} 33. Kf1
{[%clk 0:00:11.7]} 33... Bc3 {[%clk 0:00:08]} 34. Rc1 {[%clk 0:00:05]} 34...
Bxc4+ {[%clk 0:00:08.2]} 0-1

[Event "*** Titled Tuesday Blitz"]
[Site "Chess.com"]
[Date "2020.02.04"]
[Round "6"]
[White "FedaMaster"]
[Black "vova-79"]
[Result "0-1"]
[WhiteElo "2577"]
[BlackElo "2472"]
[TimeControl "180+2"]
[EndTime "14:19:15 PST"]
[Termination "vova-79 won by resignation"]

1. e4 {[%clk 0:03:01.9]} 1... e6 {[%clk 0:03:00.1]} 2. d4 {[%clk 0:02:59.7]}
2... d5 {[%clk 0:03:00.6]} 3. exd5 {[%clk 0:02:55.5]} 3... exd5 {[%clk
0:03:00.8]} 4. Nf3 {[%clk 0:02:57.3]} 4... Bd6 {[%clk 0:03:00.5]} 5. c4 {[%clk
0:02:56.2]} 5... dxc4 {[%clk 0:02:59.9]} 6. Bxc4 {[%clk 0:02:56.9]} 6... Nf6
{[%clk 0:03:00.9]} 7. Qe2+ {[%clk 0:02:53.1]} 7... Qe7 {[%clk 0:02:57.3]} 8.
Qxe7+ {[%clk 0:02:53.9]} 8... Bxe7 {[%clk 0:02:57.6]} 9. O-O {[%clk 0:02:52.2]}
9... O-O {[%clk 0:02:57]} 10. Re1 {[%clk 0:02:51.2]} 10... Bd6 {[%clk
0:02:56.2]} 11. Bg5 {[%clk 0:02:51.2]} 11... Nbd7 {[%clk 0:02:55.8]} 12. Nc3
{[%clk 0:02:51.7]} 12... a6 {[%clk 0:02:50.7]} 13. Ne5 {[%clk 0:02:43.3]} 13...
h6 {[%clk 0:02:26.2]} 14. Bh4 {[%clk 0:02:25.6]} 14... b5 {[%clk 0:02:10.2]} 15.
Bb3 {[%clk 0:01:49.9]} 15... Bb7 {[%clk 0:02:09.1]} 16. Rad1 {[%clk 0:01:41.9]}
16... g5 {[%clk 0:01:19.9]} 17. Bg3 {[%clk 0:01:41.2]} 17... Nb6 {[%clk
0:01:19.8]} 18. Nxf7 {[%clk 0:01:26.8]} 18... Rxf7 {[%clk 0:01:17.9]} 19. Bxd6
{[%clk 0:00:57]} 19... cxd6 {[%clk 0:01:17.6]} 20. Re6 {[%clk 0:00:58.1]} 20...
Nc4 {[%clk 0:01:02]} 21. Bxc4 {[%clk 0:00:52.1]} 21... bxc4 {[%clk 0:01:03.9]}
22. Rxd6 {[%clk 0:00:52.6]} 22... Kg7 {[%clk 0:01:03.7]} 23. f3 {[%clk
0:00:40.5]} 23... Rd7 {[%clk 0:00:56]} 24. Rb6 {[%clk 0:00:40.6]} 24... Rad8
{[%clk 0:00:53.3]} 25. Rb4 {[%clk 0:00:29.5]} 25... Nd5 {[%clk 0:00:43.4]} 26.
Nxd5 {[%clk 0:00:15.8]} 26... Bxd5 {[%clk 0:00:45.3]} 27. Rc1 {[%clk 0:00:14.9]}
27... Bf7 {[%clk 0:00:40.7]} 28. b3 {[%clk 0:00:13.9]} 28... cxb3 {[%clk
0:00:38.3]} 29. axb3 {[%clk 0:00:15.8]} 29... Rxd4 {[%clk 0:00:38.1]} 30. Rb6
{[%clk 0:00:07.4]} 30... Rd1+ {[%clk 0:00:30.4]} 31. Rxd1 {[%clk 0:00:08.1]}
31... Rxd1+ {[%clk 0:00:30.5]} 32. Kf2 {[%clk 0:00:10]} 32... Ra1 {[%clk
0:00:31.6]} 33. Rb7 {[%clk 0:00:05.4]} 33... a5 {[%clk 0:00:27.6]} 34. Ke3
{[%clk 0:00:03.8]} 34... Ra3 {[%clk 0:00:27.7]} 35. Kd4 {[%clk 0:00:03.7]} 35...
Rxb3 {[%clk 0:00:27.1]} 36. Ra7 {[%clk 0:00:05.6]} 0-1

[Event "*** Titled Tuesday Blitz"]
[Site "Chess.com"]
[Date "2020.02.04"]
[Round "6"]
[White "heyiampotato"]
[Black "ChEsper99"]
[Result "1-0"]
[WhiteElo "2456"]
[BlackElo "2033"]
[TimeControl "180+2"]
[EndTime "14:19:15 PST"]
[Termination "heyiampotato won by resignation"]

1. d4 {[%clk 0:03:01.9]} 1... Nf6 {[%clk 0:03:01]} 2. Nf3 {[%clk 0:03:02.8]}
2... e6 {[%clk 0:02:54.8]} 3. c4 {[%clk 0:03:02.9]} 3... a6 {[%clk 0:02:54.2]}
4. Nc3 {[%clk 0:02:58.5]} 4... d5 {[%clk 0:02:54.8]} 5. cxd5 {[%clk 0:02:58.2]}
5... exd5 {[%clk 0:02:56.7]} 6. Bg5 {[%clk 0:02:59.8]} 6... Be6 {[%clk 0:02:57]}
7. e3 {[%clk 0:03:00]} 7... Nbd7 {[%clk 0:02:56]} 8. Bd3 {[%clk 0:03:01.1]} 8...
Bd6 {[%clk 0:02:46.4]} 9. Bf4 {[%clk 0:02:57.6]} 9... Bxf4 {[%clk 0:02:43.5]}
10. exf4 {[%clk 0:02:58.5]} 10... g6 {[%clk 0:02:35.1]} 11. f5 {[%clk
0:02:53.9]} 11... Bxf5 {[%clk 0:02:33.9]} 12. Bxf5 {[%clk 0:02:54.7]} 12... gxf5
{[%clk 0:02:35.8]} 13. O-O {[%clk 0:02:52.5]} 13... O-O {[%clk 0:02:31.8]} 14.
Qd3 {[%clk 0:02:50.6]} 14... Ne4 {[%clk 0:02:32.3]} 15. Nxd5 {[%clk 0:02:45.6]}
15... Ndf6 {[%clk 0:02:16.7]} 16. Ne3 {[%clk 0:02:38.7]} 16... Qd7 {[%clk
0:02:09]} 17. Ne5 {[%clk 0:02:29.8]} 17... Qe6 {[%clk 0:02:05.9]} 18. f3 {[%clk
0:02:29.4]} 18... Nd6 {[%clk 0:02:05]} 19. Rae1 {[%clk 0:02:16.1]} 19... Rfe8
{[%clk 0:01:50.2]} 20. a3 {[%clk 0:01:59.7]} 20... f4 {[%clk 0:01:40.2]} 21.
N3g4 {[%clk 0:01:46.8]} 21... Nxg4 {[%clk 0:01:36.6]} 22. Nxg4 {[%clk
0:01:29.7]} 22... Qxe1 {[%clk 0:00:56.6]} 23. Nf6+ {[%clk 0:01:28.1]} 23... Kg7
{[%clk 0:00:38.7]} 24. Nh5+ {[%clk 0:00:56.5]} 24... Kf8 {[%clk 0:00:26.7]} 25.
Rxe1 {[%clk 0:00:48.8]} 25... Rxe1+ {[%clk 0:00:26.9]} 26. Kf2 {[%clk
0:00:50.4]} 26... Rae8 {[%clk 0:00:28]} 27. Nxf4 {[%clk 0:00:46.9]} 27... f5
{[%clk 0:00:21.6]} 28. Qb3 {[%clk 0:00:38.5]} 28... b5 {[%clk 0:00:16.9]} 29.
Qd5 {[%clk 0:00:39]} 29... Rb1 {[%clk 0:00:11.2]} 30. Ne6+ {[%clk 0:00:31]}
30... Ke7 {[%clk 0:00:12]} 31. Nxc7 {[%clk 0:00:31.6]} 31... Rxb2+ {[%clk
0:00:12.7]} 32. Kg3 {[%clk 0:00:29.8]} 32... f4+ {[%clk 0:00:07.4]} 33. Kh3
{[%clk 0:00:26.2]} 33... Rd8 {[%clk 0:00:02.6]} 34. Qe6+ {[%clk 0:00:26.9]}
34... Kf8 {[%clk 0:00:03.8]} 35. Nd5 {[%clk 0:00:24.2]} 35... Kg7 {[%clk
0:00:02.4]} 36. Qf6+ {[%clk 0:00:23.6]} 1-0

[Event "*** Titled Tuesday Blitz"]
[Site "Chess.com"]
[Date "2020.02.04"]
[Round "6"]
[White "vlad_Sid"]
[Black "LiemLe"]
[Result "1/2-1/2"]
[WhiteElo "2738"]
[BlackElo "2951"]
[TimeControl "180+2"]
[EndTime "14:19:16 PST"]
[Termination "Game drawn by repetition"]

1. c4 {[%clk 0:03:01.9]} 1... e5 {[%clk 0:03:00.7]} 2. g3 {[%clk 0:03:03.5]}
2... Nc6 {[%clk 0:02:56.5]} 3. Bg2 {[%clk 0:03:04.8]} 3... Bc5 {[%clk
0:02:57.4]} 4. Nc3 {[%clk 0:03:06.1]} 4... a6 {[%clk 0:02:57.3]} 5. e3 {[%clk
0:03:07.3]} 5... Nge7 {[%clk 0:02:57.5]} 6. Nge2 {[%clk 0:03:08.8]} 6... d6
{[%clk 0:02:58.7]} 7. a3 {[%clk 0:03:10]} 7... Ba7 {[%clk 0:02:57.8]} 8. b4
{[%clk 0:03:04.3]} 8... h5 {[%clk 0:02:54.7]} 9. h4 {[%clk 0:03:01.2]} 9... Bg4
{[%clk 0:02:55]} 10. Bb2 {[%clk 0:02:21.6]} 10... O-O {[%clk 0:02:55]} 11. Nd5
{[%clk 0:02:08.7]} 11... Nxd5 {[%clk 0:02:52.2]} 12. cxd5 {[%clk 0:02:10.6]}
12... Ne7 {[%clk 0:02:53.4]} 13. d4 {[%clk 0:02:07.9]} 13... Ng6 {[%clk
0:02:24.8]} 14. Qd2 {[%clk 0:01:55.3]} 14... Re8 {[%clk 0:02:10.5]} 15. dxe5
{[%clk 0:01:51.9]} 15... Nxe5 {[%clk 0:02:09.8]} 16. Bxe5 {[%clk 0:01:48.9]}
16... dxe5 {[%clk 0:02:01.1]} 17. O-O {[%clk 0:01:39.8]} 17... e4 {[%clk
0:01:59.8]} 18. Nf4 {[%clk 0:01:40.3]} 18... c6 {[%clk 0:01:49.3]} 19. Ra2
{[%clk 0:01:13.1]} 19... cxd5 {[%clk 0:01:48.2]} 20. Qxd5 {[%clk 0:01:04.6]}
20... Qxd5 {[%clk 0:01:46]} 21. Nxd5 {[%clk 0:01:06.5]} 21... Rac8 {[%clk
0:01:46.1]} 22. Rd2 {[%clk 0:01:01.2]} 22... Bb8 {[%clk 0:01:44.2]} 23. Rd4
{[%clk 0:00:52.4]} 23... Be2 {[%clk 0:01:32.3]} 24. Re1 {[%clk 0:00:49.4]} 24...
Bd3 {[%clk 0:01:33.5]} 25. Nf4 {[%clk 0:00:37.8]} 25... Be5 {[%clk 0:01:09.9]}
26. Rd7 {[%clk 0:00:28.4]} 26... Bxf4 {[%clk 0:01:11.1]} 27. exf4 {[%clk
0:00:30]} 27... b5 {[%clk 0:01:04.8]} 28. f3 {[%clk 0:00:26.6]} 28... Rc3 {[%clk
0:01:05.4]} 29. fxe4 {[%clk 0:00:26.5]} 29... Bc4 {[%clk 0:01:06.5]} 30. Kh2
{[%clk 0:00:26.4]} 30... Rxa3 {[%clk 0:01:07.6]} 31. e5 {[%clk 0:00:26.1]} 31...
Ra2 {[%clk 0:01:08.6]} 32. Red1 {[%clk 0:00:24.9]} 32... Rb2 {[%clk 0:01:02.9]}
33. Ra7 {[%clk 0:00:20.8]} 33... Be2 {[%clk 0:00:58.6]} 34. Rdd7 {[%clk
0:00:12.3]} 34... Bf3 {[%clk 0:00:59.7]} 35. Rxf7 {[%clk 0:00:12.5]} 35... Rxg2+
{[%clk 0:01:00]} 36. Kh3 {[%clk 0:00:12.7]} 36... Rg1 {[%clk 0:00:22.9]} 37.
Rxg7+ {[%clk 0:00:11.2]} 37... Kh8 {[%clk 0:00:24.4]} 38. Rh7+ {[%clk
0:00:11.8]} 38... Kg8 {[%clk 0:00:25.9]} 39. Rag7+ {[%clk 0:00:12.2]} 39... Kf8
{[%clk 0:00:26.6]} 40. Rf7+ {[%clk 0:00:13.1]} 40... Kg8 {[%clk 0:00:28.1]} 41.
Rhg7+ {[%clk 0:00:14.6]} 41... Kh8 {[%clk 0:00:29.6]} 42. Rh7+ {[%clk
0:00:16.5]} 42... Kg8 {[%clk 0:00:31.1]} 43. Rhg7+ {[%clk 0:00:18.4]} 43... Kh8
{[%clk 0:00:32.6]} 44. Rh7+ {[%clk 0:00:20.3]} 44... Kg8 {[%clk 0:00:34.2]}
1/2-1/2